fUSD/lending_fUSD_20260605
["ID","MTS","AMOUNT","RATE_DAILY","PERIOD"]
[424222179,1780673444000,-300.0,0.00021279,2]
[424222166,1780673444000,-155.0,0.0002107,2]
[424222180,1780673444000,-300.0,0.00021279,2]
[424222183,1780673444000,-300.0,0.00021279,2]
[424222198,1780673444000,-150.0,0.00021387,2]
[424222189,1780673444000,-150.0,0.00021387,2]
[424222196,1780673444000,-150.0,0.00021387,2]
[424222194,1780673444000,-150.0,0.00021387,2]
[424222197,1780673444000,-150.0,0.00021387,2]
[424222195,1780673444000,-150.0,0.00021387,2]
[424222193,1780673444000,-150.0,0.00021387,2]
[424222192,1780673444000,-150.0,0.00021387,2]
[424222191,1780673444000,-150.0,0.00021387,2]
[424222188,1780673444000,-150.0,0.00021387,2]
[424222181,1780673444000,-300.0,0.00021279,2]
[424222182,1780673444000,-300.0,0.00021279,2]
[424222190,1780673444000,-150.0,0.00021387,2]
[424222288,1780673445000,-2176.43,0.00022466,2]
[424222291,1780673445000,-529.96,0.00022466,2]
[424222286,1780673445000,-771.00218698,0.00022407,2]
[424222284,1780673445000,-771.00218699,0.00022407,2]
[424222282,1780673445000,-6417.29,0.000224,14]
[424222269,1780673445000,-7500.0,0.0002224,3]
[424222271,1780673445000,-3994.5,0.00022353,2]
[424222274,1780673445000,-250.0,0.00022356,2]
[424222280,1780673445000,-223.0,0.00022356,2]
[424222272,1780673445000,-250.0,0.00022356,2]
[424222276,1780673445000,-250.0,0.00022356,2]
[424222278,1780673445000,-250.0,0.00022356,2]
[424222289,1780673445000,-930.53,0.00022466,2]
[424222314,1780673445000,-200.0,0.00022728,2]
[424222295,1780673445000,-36103.46064728,0.000225,2]
[424222308,1780673445000,-3368.74,0.00022691,2]
[424222310,1780673445000,-434.88,0.00022691,2]
[424222312,1780673445000,-532.28220646,0.0002271,2]
[424222297,1780673445000,-151.0,0.00022558,2]
[424222299,1780673445000,-200.0,0.00022558,2]
[424222301,1780673445000,-2586.85809042,0.00022558,2]
[424222305,1780673445000,-168.28,0.00022603,2]
[424222303,1780673445000,-3666.98518134,0.000226,2]
[424222318,1780673445000,-1068.11,0.00022738,2]
[424222316,1780673445000,-1030.0,0.00022738,2]
[424222320,1780673445000,-1107.63007,0.00022738,2]
[424222322,1780673445000,-1148.61238259,0.00022738,2]
[424222259,1780673445000,-1997.75,0.00022,2]
[424222293,1780673445000,-1091.35,0.00022466,2]
[424222267,1780673445000,-308.24,0.000222,2]
[424222247,1780673445000,-450.0,0.00022,2]
[424222265,1780673445000,-507.61815622,0.00022122,7]
[424222331,1780673445000,-209.40437684,0.00022738,2]
[424222236,1780673445000,-17709.0,0.00021998,2]
[424222233,1780673445000,-166.0,0.00021918,2]
[424222234,1780673445000,-166.0,0.00021918,2]
[424222237,1780673445000,-151.0,0.00021999,2]
[424222238,1780673445000,-6887.92939429,0.00022,2]
[424222235,1780673445000,-200.0,0.00021949,2]
[424222242,1780673445000,-812.0,0.00022,2]
[424222251,1780673445000,-300.0,0.00022,2]
[424222252,1780673445000,-3475.0,0.00022,2]
[424222248,1780673445000,-864.0,0.00022,2]
[424222250,1780673445000,-160.0,0.00022,2]
[424222239,1780673445000,-500.0,0.00022,3]
[424222240,1780673445000,-500.0,0.00022,3]
[424222249,1780673445000,-535.0,0.00022,2]
[424222245,1780673445000,-2727.0,0.00022,2]
[424222246,1780673445000,-2740.0,0.00022,2]
[424222244,1780673445000,-684.0,0.00022,2]
[424222241,1780673445000,-5757.140333,0.00022,2]
[424222243,1780673445000,-1136.0,0.00022,2]
[424222253,1780673445000,-716.0,0.00022,2]
[424222256,1780673445000,-917.0,0.00022,2]
[424222255,1780673445000,-3817.0,0.00022,2]
[424222254,1780673445000,-704.0,0.00022,2]
[424222262,1780673445000,-2494.55939288,0.0002201,2]
[424222261,1780673445000,-200.0,0.0002201,2]
[424222260,1780673445000,-151.0,0.0002201,2]
[424222257,1780673445000,-1918.0,0.00022,2]
[424222258,1780673445000,-461.0,0.00022,2]
[424222263,1780673445000,-244.2914288,0.0002211,2]
[424222324,1780673445000,-1191.11104074,0.00022738,2]
[424222307,1780673445000,-161.14808876,0.00022635,2]
[424222333,1780673445000,-279.9045709,0.00022738,2]
[424222370,1780673445000,-152.0,0.00022738,2]
[424222373,1780673445000,-200.0,0.00022738,2]
[424222376,1780673445000,-152.0,0.00022738,2]
[424222375,1780673445000,-1000.0,0.00022738,2]
[424222377,1780673445000,-1000.0,0.00022738,2]
[424222382,1780673445000,-152.0,0.00022738,2]
[424222379,1780673445000,-1000.0,0.00022738,2]
[424222383,1780673445000,-152.0,0.00022738,2]
[424222380,1780673445000,-152.0,0.00022738,2]
[424222378,1780673445000,-152.0,0.00022738,2]
[424222384,1780673445000,-152.0,0.00022738,2]
[424222381,1780673445000,-152.0,0.00022738,2]
[424222386,1780673445000,-152.0,0.00022738,2]
[424222389,1780673445000,-4314.28487652,0.00022793,2]
[424222387,1780673445000,-719.04747942,0.00022793,2]
[424222390,1780673445000,-745.65223615,0.00022848,2]
[424222392,1780673445000,-4473.91341695,0.00022848,2]
[424222388,1780673445000,-151.0,0.00022793,2]
[424222385,1780673445000,-152.0,0.00022738,2]
[424222391,1780673445000,-151.0,0.00022848,2]
[424222393,1780673445000,-178.8572642,0.00022893,2]
[424222394,1780673445000,-335.72518492,0.00022893,2]
[424222396,1780673445000,-773.24136889,0.00022903,2]
[424222395,1780673445000,-272.95863885,0.00022903,2]
[424222397,1780673445000,-151.0,0.00022903,2]
[424222398,1780673445000,-4639.44821338,0.00022903,2]
[424222399,1780673445000,-800.0,0.00022912,8]
[424222402,1780673445000,-800.0,0.00022912,8]
[424222401,1780673445000,-800.0,0.00022912,8]
[424222368,1780673445000,-209.40437684,0.00022738,2]
[424222369,1780673445000,-1000.0,0.00022738,2]
[424222329,1780673445000,-693.39197629,0.00022738,2]
[424222367,1780673445000,-721.12765534,0.00022738,2]
[424222366,1780673445000,-152.0,0.00022738,2]
[424222327,1780673445000,-1235.18214925,0.00022738,2]
[424222335,1780673445000,-151.0,0.00022738,2]
[424222341,1780673445000,-743.50770149,0.00022738,2]
[424222338,1780673445000,-1280.88388877,0.00022738,2]
[424222343,1780673445000,-151.0,0.00022738,2]
[424222346,1780673445000,-1377.42282658,0.00022738,2]
[424222345,1780673445000,-156.587,0.00022738,2]
[424222351,1780673445000,-209.40437684,0.00022738,2]
[424222361,1780673445000,-4160.35185778,0.00022738,2]
[424222350,1780673445000,-200.00373781,0.00022738,2]
[424222354,1780673445000,-1000.0,0.00022738,2]
[424222348,1780673445000,-1428.38747117,0.00022738,2]
[424222400,1780673445000,-800.0,0.00022912,8]
[424222344,1780673445000,-1328.27659266,0.00022738,2]
[424222359,1780673445000,-1000.0,0.00022738,2]
[424222353,1780673445000,-1000.0,0.00022738,2]
[424222363,1780673445000,-160.0,0.00022738,2]
[424222371,1780673445000,-1000.0,0.00022738,2]
[424222374,1780673445000,-151.0,0.00022738,2]
[424222365,1780673445000,-209.40437684,0.00022738,2]
[424222364,1780673445000,-1000.0,0.00022738,2]
[424222362,1780673445000,-200.0,0.00022738,2]
[424222372,1780673445000,-500.0,0.00022738,2]
[424222356,1780673445000,-693.39197629,0.00022738,2]
[424222357,1780673445000,-1000.0,0.00022738,2]
[424222355,1780673445000,-578.20924308,0.00022738,2]
[424222360,1780673445000,-9552.16786547,0.00022738,2]
[424222358,1780673445000,-151.0,0.00022738,2]
[424222352,1780673445000,-174.61919141,0.00022738,2]
[424222455,1780673446000,-1136.0,0.00023,2]
[424222462,1780673446000,-1016.23586055,0.00023,2]
[424222467,1780673446000,-3817.0,0.00023,2]
[424222464,1780673446000,-716.0,0.00023,2]
[424222458,1780673446000,-2740.0,0.00023,2]
[424222452,1780673446000,-151.0,0.00023,2]
[424222460,1780673446000,-864.0,0.00023,2]
[424222463,1780673446000,-3475.0,0.00023,2]
[424222457,1780673446000,-2727.0,0.00023,2]
[424222456,1780673446000,-684.0,0.00023,2]
[424222454,1780673446000,-205.08567092,0.00023,2]
[424222461,1780673446000,-535.0,0.00023,2]
[424222466,1780673446000,-704.0,0.00023,2]
[424222469,1780673446000,-215.77576141,0.00023,3]
[424222486,1780673446000,-1350.0,0.00023022,2]
[424222470,1780673446000,-917.0,0.00023,2]
[424222472,1780673446000,-461.0,0.00023,2]
[424222476,1780673446000,-4989.11878577,0.00023013,2]
[424222473,1780673446000,-831.51979762,0.00023013,2]
[424222474,1780673446000,-151.0,0.00023013,2]
[424222478,1780673446000,-1350.0,0.00023022,2]
[424222484,1780673446000,-1350.0,0.00023022,2]
[424222479,1780673446000,-1350.0,0.00023022,2]
[424222481,1780673446000,-1350.0,0.00023022,2]
[424222482,1780673446000,-1350.0,0.00023022,2]
[424222471,1780673446000,-1918.0,0.00023,2]
[424222483,1780673446000,-1350.0,0.00023022,2]
[424222480,1780673446000,-1350.0,0.00023022,2]
[424222453,1780673446000,-812.0,0.00023,2]
[424222468,1780673446000,-200.0,0.00023,10]
[424222450,1780673446000,-152.0,0.00022996,2]
[424222426,1780673446000,-500.0,0.0002297,2]
[424222449,1780673446000,-150.0,0.00022996,2]
[424222496,1780673446000,-151.0,0.00023123,2]
[424222403,1780673446000,-800.0,0.00022912,8]
[424222408,1780673446000,-800.0,0.00022912,8]
[424222404,1780673446000,-800.0,0.00022912,8]
[424222406,1780673446000,-800.0,0.00022912,8]
[424222405,1780673446000,-800.0,0.00022912,8]
[424222410,1780673446000,-800.0,0.00022912,8]
[424222411,1780673446000,-800.0,0.00022912,8]
[424222407,1780673446000,-800.0,0.00022912,8]
[424222409,1780673446000,-800.0,0.00022912,8]
[424222412,1780673446000,-800.0,0.00022912,8]
[424222420,1780673446000,-4811.10779727,0.00022958,2]
[424222428,1780673446000,-1000.0,0.0002297,2]
[424222413,1780673446000,-800.0,0.00022912,8]
[424222434,1780673446000,-374.0,0.00022973,2]
[424222424,1780673446000,-1000.0,0.0002297,2]
[424222416,1780673446000,-801.85129954,0.00022958,2]
[424222418,1780673446000,-151.0,0.00022958,2]
[424222422,1780673446000,-500.0,0.0002297,2]
[424222430,1780673446000,-500.0,0.0002297,2]
[424222432,1780673446000,-1000.0,0.0002297,2]
[424222437,1780673446000,-150.0,0.00022994,2]
[424222442,1780673446000,-150.0,0.00022996,2]
[424222439,1780673446000,-284.0,0.00022994,2]
[424222435,1780673446000,-150.0,0.00022994,2]
[424222443,1780673446000,-150.0,0.00022996,2]
[424222451,1780673446000,-5757.140333,0.00023,2]
[424222448,1780673446000,-150.0,0.00022996,2]
[424222447,1780673446000,-150.0,0.00022996,2]
[424222445,1780673446000,-150.0,0.00022996,2]
[424222485,1780673446000,-1350.0,0.00023022,2]
[424222414,1780673446000,-800.0,0.00022912,8]
[424222489,1780673446000,-151.0,0.00023068,2]
[424222524,1780673446000,-217.15233878,0.00023286,2]
[424222526,1780673446000,-200.0,0.00023286,2]
[424222527,1780673446000,-151.0,0.00023286,2]
[424222529,1780673446000,-151.0,0.00023288,2]
[424222528,1780673446000,-997.16350561,0.00023288,2]
[424222531,1780673446000,-2000.0,0.00023333,7]
[424222532,1780673446000,-500.0,0.00023425,2]
[424222534,1780673446000,-1174.09564159,0.000235,2]
[424222533,1780673446000,-12898.39,0.00023452,7]
[424222530,1780673446000,-5982.98103368,0.00023288,2]
[424222525,1780673446000,-500.0,0.00023286,2]
[424222536,1780673446000,-151.0,0.00023654,2]
[424222535,1780673446000,-200.0,0.00023508,2]
[424222538,1780673446000,-2781.82699784,0.00023654,2]
[424222546,1780673446000,-745.65223615,0.00023834,2]
[424222545,1780673446000,-187.78006524,0.00023834,2]
[424222544,1780673446000,-1536.04360648,0.00023834,2]
[424222549,1780673446000,-225.18697532,0.00023834,2]
[424222552,1780673446000,-200.0,0.00023834,2]
[424222548,1780673446000,-200.0,0.00023834,2]
[424222537,1780673446000,-200.0,0.00023654,2]
[424222547,1780673446000,-10272.10520532,0.00023834,2]
[424222543,1780673446000,-799.54513344,0.00023834,2]
[424222542,1780673446000,-301.0006985,0.00023834,2]
[424222540,1780673446000,-3641.0,0.00023798,2]
[424222541,1780673446000,-225.18697532,0.00023834,2]
[424222550,1780673446000,-225.18697532,0.00023834,2]
[424222551,1780673446000,-500.0,0.00023834,2]
[424222488,1780673446000,-862.28603014,0.00023068,2]
[424222519,1780673446000,-181.08010149,0.00023286,2]
[424222516,1780673446000,-290.26104002,0.00023286,2]
[424222539,1780673446000,-3553.0,0.00023798,2]
[424222520,1780673446000,-719.04747942,0.00023286,2]
[424222517,1780673446000,-771.01748644,0.00023286,2]
[424222487,1780673446000,-1269.0,0.00023022,2]
[424222498,1780673446000,-927.27566594,0.00023178,2]
[424222492,1780673446000,-151.0,0.00023106,2]
[424222497,1780673446000,-5365.14367954,0.00023123,2]
[424222493,1780673446000,-200.0,0.00023106,2]
[424222491,1780673446000,-300.0,0.000231,10]
[424222494,1780673446000,-2682.57183977,0.00023106,2]
[424222495,1780673446000,-894.19061325,0.00023123,2]
[424222500,1780673446000,-5563.65399568,0.00023178,2]
[424222499,1780673446000,-151.0,0.00023178,2]
[424222506,1780673446000,-5769.50919352,0.00023233,2]
[424222501,1780673446000,-321.16017515,0.000232,2]
[424222507,1780673446000,-186.18115721,0.00023249,2]
[424222502,1780673446000,-1781.577206,0.00023205,2]
[424222490,1780673446000,-5173.71618084,0.00023068,2]
[424222509,1780673446000,-150.5199961,0.00023249,2]
[424222508,1780673446000,-498.99321736,0.00023249,2]
[424222522,1780673446000,-200.0,0.00023286,2]
[424222515,1780673446000,-217.15233878,0.00023286,2]
[424222514,1780673446000,-293.78963101,0.00023265,2]
[424222512,1780673446000,-186.18115721,0.00023257,2]
[424222523,1780673446000,-217.15233878,0.00023286,2]
[424222521,1780673446000,-9905.59807649,0.00023286,2]
[424222505,1780673446000,-151.0,0.00023233,2]
[424222510,1780673446000,-186.18115721,0.00023257,2]
[424222513,1780673446000,-206.31680697,0.00023265,2]
[424222504,1780673446000,-961.58486558,0.00023233,2]
[424222518,1780673446000,-1481.2378076,0.00023286,2]
[424222503,1780673446000,-793.5049462,0.00023207,2]
[424222511,1780673446000,-150.52165905,0.00023257,2]
[424222592,1780673447000,-200.0,0.00024288,2]
[424222584,1780673447000,-200.0,0.00024202,2]
[424222588,1780673447000,-500.0,0.0002424,2]
[424222578,1780673447000,-160.0,0.00024107,2]
[424222582,1780673447000,-1328.69,0.000242,7]
[424222589,1780673447000,-437.0,0.00024272,2]
[424222583,1780673447000,-151.0,0.00024202,2]
[424222591,1780673447000,-1227.0,0.00024272,2]
[424222601,1780673447000,-200.0,0.00024382,2]
[424222602,1780673447000,-233.5188934,0.00024382,2]
[424222586,1780673447000,-3763.71119265,0.0002421,2]
[424222581,1780673447000,-12909.0,0.00024197,2]
[424222599,1780673447000,-773.24136889,0.00024382,2]
[424222593,1780673447000,-3994.5,0.00024324,2]
[424222590,1780673447000,-1273.0,0.00024272,2]
[424222596,1780673447000,-312.13772435,0.00024382,2]
[424222598,1780673447000,-194.72792766,0.00024382,2]
[424222597,1780673447000,-1592.87721992,0.00024382,2]
[424222600,1780673447000,-10652.17309792,0.00024382,2]
[424222595,1780673447000,-829.12830338,0.00024382,2]
[424222605,1780673447000,-200.0,0.00024382,2]
[424222603,1780673447000,-233.5188934,0.00024382,2]
[424222604,1780673447000,-500.0,0.00024382,2]
[424222585,1780673447000,-2884.75459676,0.00024202,2]
[424222594,1780673447000,-233.5188934,0.00024382,2]
[424222587,1780673447000,-7500.0,0.0002424,3]
[424222566,1780673447000,-1257.5843238,0.00024,2]
[424222579,1780673447000,-814.21,0.0002411,2]
[424222608,1780673447000,-150.0,0.00024387,2]
[424222561,1780673447000,-2727.0,0.00024,2]
[424222557,1780673447000,-812.0,0.00024,2]
[424222559,1780673447000,-684.0,0.00024,2]
[424222558,1780673447000,-1136.0,0.00024,2]
[424222554,1780673447000,-350.0,0.0002389,5]
[424222553,1780673447000,-151.0,0.00023834,2]
[424222555,1780673447000,-200.0,0.0002389,2]
[424222560,1780673447000,-1040.04083179,0.00024,2]
[424222556,1780673447000,-5757.140333,0.00024,2]
[424222562,1780673447000,-2740.0,0.00024,2]
[424222564,1780673447000,-3600.0,0.00024,2]
[424222576,1780673447000,-156.587,0.00024107,2]
[424222574,1780673447000,-461.0,0.00024,2]
[424222568,1780673447000,-3475.0,0.00024,2]
[424222575,1780673447000,-215.77576141,0.00024,7]
[424222563,1780673447000,-500.0,0.00024,2]
[424222569,1780673447000,-716.0,0.00024,2]
[424222567,1780673447000,-535.0,0.00024,2]
[424222565,1780673447000,-864.0,0.00024,2]
[424222571,1780673447000,-3817.0,0.00024,2]
[424222572,1780673447000,-917.0,0.00024,2]
[424222573,1780673447000,-1918.0,0.00024,2]
[424222570,1780673447000,-704.0,0.00024,2]
[424222577,1780673447000,-217.15233878,0.00024107,2]
[424222580,1780673447000,-463.72,0.0002411,2]
[424222607,1780673447000,-150.0,0.00024387,2]
[424222612,1780673447000,-150.0,0.00024387,2]
[424222609,1780673447000,-150.0,0.00024387,2]
[424222636,1780673447000,-242.15909246,0.0002493,2]
[424222639,1780673447000,-984.4902348,0.00024985,2]
[424222643,1780673447000,-1137.51531788,0.00025,2]
[424222642,1780673447000,-819.08937479,0.00025,2]
[424222644,1780673447000,-687.97008557,0.00025,2]
[424222645,1780673447000,-1132.11673633,0.00025,2]
[424222647,1780673447000,-174.01953729,0.00025,60]
[424222646,1780673447000,-210.88009305,0.00025,2]
[424222648,1780673447000,-2734.62205104,0.00025,2]
[424222650,1780673447000,-2755.04793922,0.00025,2]
[424222651,1780673447000,-2000.0,0.00025,2]
[424222653,1780673447000,-874.0,0.00025,2]
[424222663,1780673447000,-3488.10499114,0.00025,2]
[424222652,1780673447000,-540.0,0.00025,2]
[424222654,1780673447000,-620.74641957,0.00025,2]
[424222655,1780673447000,-3092.99737993,0.00025,2]
[424222657,1780673447000,-2236.37109545,0.00025,2]
[424222656,1780673447000,-7245.15902368,0.00025,2]
[424222659,1780673447000,-170.05133611,0.00025,2]
[424222660,1780673447000,-628.5162284,0.00025,5]
[424222658,1780673447000,-538.71455908,0.00025,2]
[424222662,1780673447000,-1988379.10693982,0.00025,2]
[424222661,1780673447000,-666.58968006,0.00025,2]
[424222664,1780673447000,-151.0,0.00025,2]
[424222615,1780673447000,-172.22658536,0.0002465,2]
[424222641,1780673447000,-730.843909,0.00024985,2]
[424222634,1780673447000,-242.15909246,0.0002493,2]
[424222649,1780673447000,-1814.05518717,0.00025,2]
[424222640,1780673447000,-792.757306,0.00024985,2]
[424222614,1780673447000,-150.0,0.00024387,2]
[424222638,1780673447000,-151.0,0.0002493,2]
[424222611,1780673447000,-150.0,0.00024387,2]
[424222606,1780673447000,-151.0,0.00024382,2]
[424222610,1780673447000,-150.0,0.00024387,2]
[424222613,1780673447000,-150.0,0.00024387,2]
[424222617,1780673447000,-6010.95,0.00024658,2]
[424222616,1780673447000,-6010.95,0.00024658,2]
[424222624,1780673447000,-2991.49051684,0.0002475,2]
[424222620,1780673447000,-512.46,0.00024658,2]
[424222625,1780673447000,-1997.75,0.00024831,7]
[424222618,1780673447000,-161.02,0.00024658,2]
[424222621,1780673447000,-26933.0,0.00024731,2]
[424222623,1780673447000,-200.0,0.0002475,2]
[424222637,1780673447000,-200.0,0.0002493,2]
[424222635,1780673447000,-500.0,0.0002493,2]
[424222626,1780673447000,-242.15909246,0.0002493,2]
[424222633,1780673447000,-200.0,0.0002493,2]
[424222632,1780673447000,-11046.30350254,0.0002493,2]
[424222629,1780673447000,-1651.81367706,0.0002493,2]
[424222631,1780673447000,-801.85129954,0.0002493,2]
[424222619,1780673447000,-1000.0,0.00024658,2]
[424222622,1780673447000,-151.0,0.0002475,2]
[424222627,1780673447000,-859.8060506,0.0002493,2]
[424222628,1780673447000,-323.68682015,0.0002493,2]
[424222630,1780673447000,-201.93286098,0.0002493,2]
[424222711,1780673448000,-439.09,0.00025,2]
[424222704,1780673448000,-5206.773793,0.00025,2]
[424222705,1780673448000,-1024.56049,0.00025,2]
[424222713,1780673448000,-439.09,0.00025,2]
[424222703,1780673448000,-1024.56049,0.00025,2]
[424222700,1780673448000,-5206.773793,0.00025,2]
[424222721,1780673448000,-151.0,0.00025,2]
[424222697,1780673448000,-151.0,0.00025,2]
[424222696,1780673448000,-151.0,0.00025,2]
[424222692,1780673448000,-991.41694,0.00025,2]
[424222706,1780673448000,-439.09,0.00025,2]
[424222702,1780673448000,-5206.773793,0.00025,2]
[424222712,1780673448000,-439.09,0.00025,2]
[424222717,1780673448000,-1024.56049,0.00025,2]
[424222709,1780673448000,-439.09,0.00025,2]
[424222710,1780673448000,-439.09,0.00025,2]
[424222708,1780673448000,-439.09,0.00025,2]
[424222715,1780673448000,-439.09,0.00025,2]
[424222714,1780673448000,-439.09,0.00025,2]
[424222723,1780673448000,-227.48602547,0.00025096,2]
[424222725,1780673448000,-200.0,0.00025298,2]
[424222724,1780673448000,-12898.39,0.00025178,7]
[424222716,1780673448000,-5206.773793,0.00025,2]
[424222719,1780673448000,-151.0,0.00025,2]
[424222718,1780673448000,-151.0,0.00025,2]
[424222695,1780673448000,-991.41694,0.00025,2]
[424222707,1780673448000,-439.09,0.00025,2]
[424222701,1780673448000,-1024.56049,0.00025,2]
[424222668,1780673448000,-704.10012467,0.00025,2]
[424222690,1780673448000,-151.0,0.00025,2]
[424222667,1780673448000,-727.38328777,0.00025,2]
[424222666,1780673448000,-151.0,0.00025,2]
[424222670,1780673448000,-3001.961721,0.00025,2]
[424222665,1780673448000,-151.0,0.00025,2]
[424222669,1780673448000,-3001.961721,0.00025,2]
[424222671,1780673448000,-3822.35156959,0.00025,2]
[424222674,1780673448000,-314.504776,0.00025,2]
[424222673,1780673448000,-3001.961721,0.00025,2]
[424222672,1780673448000,-3001.961721,0.00025,2]
[424222675,1780673448000,-314.504776,0.00025,2]
[424222676,1780673448000,-314.504776,0.00025,2]
[424222678,1780673448000,-927.89084215,0.00025,2]
[424222688,1780673448000,-151.0,0.00025,2]
[424222679,1780673448000,-360.414396,0.00025,2]
[424222681,1780673448000,-360.414396,0.00025,2]
[424222689,1780673448000,-151.0,0.00025,2]
[424222677,1780673448000,-314.504776,0.00025,2]
[424222680,1780673448000,-360.414396,0.00025,2]
[424222686,1780673448000,-151.0,0.00025,2]
[424222687,1780673448000,-151.0,0.00025,2]
[424222685,1780673448000,-151.0,0.00025,2]
[424222684,1780673448000,-152.346654,0.00025,2]
[424222682,1780673448000,-360.414396,0.00025,2]
[424222683,1780673448000,-1925.05141722,0.00025,2]
[424222694,1780673448000,-475.8172967,0.00025,2]
[424222699,1780673448000,-151.0,0.00025,2]
[424222691,1780673448000,-991.41694,0.00025,2]
[424222698,1780673448000,-151.0,0.00025,2]
[424222722,1780673448000,-200.0,0.00025067,2]
[424222693,1780673448000,-991.41694,0.00025,2]
[424222727,1780673448000,-312.45047246,0.00025417,2]
[424222758,1780673448000,-924.60877283,0.00026026,2]
[424222755,1780673448000,-550.0,0.00026,2]
[424222757,1780673448000,-260.4103811,0.00026026,2]
[424222770,1780673448000,-581.58,0.00026027,7]
[424222762,1780673448000,-862.28603014,0.00026026,2]
[424222771,1780673448000,-331.23,0.00026027,7]
[424222761,1780673448000,-217.15233878,0.00026026,2]
[424222772,1780673448000,-498.99321736,0.00026187,2]
[424222773,1780673448000,-500.0,0.0002625,2]
[424222763,1780673448000,-11878.85235123,0.00026026,2]
[424222764,1780673448000,-200.0,0.00026026,2]
[424222766,1780673448000,-260.4103811,0.00026026,2]
[424222768,1780673448000,-200.0,0.00026026,2]
[424222765,1780673448000,-500.0,0.00026026,2]
[424222767,1780673448000,-260.4103811,0.00026026,2]
[424222782,1780673448000,-958.81929743,0.00026574,2]
[424222783,1780673448000,-360.96183466,0.00026574,2]
[424222777,1780673448000,-200.0,0.00026394,2]
[424222781,1780673448000,-270.0455652,0.00026574,2]
[424222779,1780673448000,-27956.72095407,0.000264,2]
[424222784,1780673448000,-1842.0326633,0.00026574,2]
[424222778,1780673448000,-477.08843399,0.00026397,2]
[424222774,1780673448000,-500.0,0.0002625,2]
[424222775,1780673448000,-360.0,0.0002625,2]
[424222776,1780673448000,-3994.5,0.00026296,2]
[424222780,1780673448000,-151.0,0.000265,2]
[424222720,1780673448000,-151.0,0.00025,2]
[424222756,1780673448000,-220.10517838,0.00026,2]
[424222759,1780673448000,-348.0827721,0.00026026,2]
[424222769,1780673448000,-151.0,0.00026026,2]
[424222760,1780673448000,-1776.30922209,0.00026026,2]
[424222754,1780673448000,-4598.79772599,0.00026,2]
[424222728,1780673448000,-162.380719,0.00025476,2]
[424222731,1780673448000,-599.60298507,0.00025477,2]
[424222737,1780673448000,-209.40437684,0.00025478,2]
[424222735,1780673448000,-335.66323249,0.00025478,2]
[424222729,1780673448000,-225.18697532,0.00025476,2]
[424222730,1780673448000,-160.0,0.00025476,2]
[424222734,1780673448000,-891.61887448,0.00025478,2]
[424222736,1780673448000,-1712.93078311,0.00025478,2]
[424222733,1780673448000,-251.11897888,0.00025478,2]
[424222732,1780673448000,-747.80937859,0.00025477,2]
[424222739,1780673448000,-11455.01673214,0.00025478,2]
[424222747,1780673448000,-1487.43,0.00025644,2]
[424222738,1780673448000,-831.51979762,0.00025478,2]
[424222726,1780673448000,-477.08843399,0.00025397,2]
[424222751,1780673448000,-200.0,0.00025847,2]
[424222748,1780673448000,-247.9,0.00025644,2]
[424222741,1780673448000,-251.11897888,0.00025478,2]
[424222742,1780673448000,-500.0,0.00025478,2]
[424222745,1780673448000,-151.0,0.00025478,2]
[424222746,1780673448000,-168.28,0.00025548,2]